[Event "Titled Tuesday Blitz August 22 Late 2023"]
[White "Harikrishna, Pentala"]
[Black "Papasimakopoulos, Alexandros"]
[WhiteFideId "5007003"]
[BlackFideId "4244125"]
[WhiteElo "2983"]
[BlackElo "2694"]
[Result "0-1"]
[Round "3"]
[TimeControl "180+1"]
[Date "2023.08.22"]
[WhiteClock "0:00:44"]
[BlackClock "0:01:48"]
[Board "16"]

1. Nf3 {[%clk 0:03:00]}  d5 {[%clk 0:03:00]} 2. e3 {[%clk 0:03:00]}  c6 {[%clk 0:03:00]} 3. c4 {[%clk 0:03:00]}  Nf6 {[%clk 0:03:00]} 4. Qc2 {[%clk 0:02:59]}  Bg4 {[%clk 0:03:00]} 5. Ne5 {[%clk 0:02:58]}  Bh5 {[%clk 0:03:00]} 6. cxd5 {[%clk 0:02:54]}  Qxd5 {[%clk 0:02:58]} 7. f4 {[%clk 0:02:43]}  Bg6 {[%clk 0:02:55]} 8. Qb3 {[%clk 0:02:36]}  Qxb3 {[%clk 0:02:55]} 9. axb3 {[%clk 0:02:37]}  Nbd7 {[%clk 0:02:53]} 10. Nxg6 {[%clk 0:02:33]}  hxg6 {[%clk 0:02:54]} 11. b4 {[%clk 0:02:33]}  e6 {[%clk 0:02:50]} 12. b5 {[%clk 0:02:33]}  c5 {[%clk 0:02:42]} 13. Na3 {[%clk 0:02:28]}  Nb6 {[%clk 0:02:40]} 14. b3 {[%clk 0:02:25]}  Be7 {[%clk 0:02:40]} 15. Nc4 {[%clk 0:02:23]}  Nbd5 {[%clk 0:02:40]} 16. Bb2 {[%clk 0:02:22]}  O-O {[%clk 0:02:39]} 17. Be2 {[%clk 0:02:20]}  Nb4 {[%clk 0:02:39]} 18. O-O {[%clk 0:02:18]}  Nfd5 {[%clk 0:02:40]} 19. e4 {[%clk 0:02:11]}  Nb6 {[%clk 0:02:38]} 20. Na5 {[%clk 0:02:10]}  Rab8 {[%clk 0:02:37]} 21. Be5 {[%clk 0:02:08]}  Rbd8 {[%clk 0:02:38]} 22. Rfd1 {[%clk 0:02:00]}  Rd7 {[%clk 0:02:38]} 23. Nc4 {[%clk 0:02:00]}  Nxc4 {[%clk 0:02:38]} 24. Bxc4 {[%clk 0:01:57]}  b6 {[%clk 0:02:37]} 25. Bc3 {[%clk 0:01:57]}  Rfd8 {[%clk 0:02:36]} 26. Bxb4 {[%clk 0:01:56]}  cxb4 {[%clk 0:02:37]} 27. d3 {[%clk 0:01:57]}  Bc5+ {[%clk 0:02:37]} 28. Kf1 {[%clk 0:01:56]}  Be3 {[%clk 0:02:37]} 29. g3 {[%clk 0:01:55]}  g5 {[%clk 0:02:37]} 30. fxg5 {[%clk 0:01:54]}  Bxg5 {[%clk 0:02:38]} 31. Ke2 {[%clk 0:01:52]}  Bf6 {[%clk 0:02:38]} 32. Ra2 {[%clk 0:01:51]}  Bc3 {[%clk 0:02:38]} 33. h4 {[%clk 0:01:49]}  g6 {[%clk 0:02:39]} 34. Rh1 {[%clk 0:01:47]}  Kg7 {[%clk 0:02:39]} 35. Ke3 {[%clk 0:01:47]}  Be5 {[%clk 0:02:36]} 36. Rg2 {[%clk 0:01:46]}  Bd4+ {[%clk 0:02:36]} 37. Ke2 {[%clk 0:01:46]}  Rh8 {[%clk 0:02:37]} 38. g4 {[%clk 0:01:46]}  Rdd8 {[%clk 0:02:32]} 39. h5 {[%clk 0:01:46]}  Rh6 {[%clk 0:02:32]} 40. Rgh2 {[%clk 0:01:26]}  Rdh8 {[%clk 0:02:31]} 41. Kf3 {[%clk 0:01:26]}  gxh5 {[%clk 0:02:31]} 42. Rxh5 {[%clk 0:01:24]}  Rxh5 {[%clk 0:02:31]} 43. gxh5 {[%clk 0:01:24]}  Kf6 {[%clk 0:02:27]} 44. Kf4 {[%clk 0:01:23]}  Rh6 {[%clk 0:02:22]} 45. Kg4 {[%clk 0:01:16]}  Be5 {[%clk 0:02:20]} 46. Rf1+ {[%clk 0:01:14]}  Kg7 {[%clk 0:02:17]} 47. Rf2 {[%clk 0:01:14]}  Bd4 {[%clk 0:02:16]} 48. Ra2 {[%clk 0:01:14]}  f5+ {[%clk 0:02:11]} 49. exf5 {[%clk 0:01:07]}  exf5+ {[%clk 0:02:12]} 50. Kxf5 {[%clk 0:01:08]}  Rxh5+ {[%clk 0:02:12]} 51. Ke4 {[%clk 0:01:03]}  Rh4+ {[%clk 0:02:12]} 52. Kd5 {[%clk 0:01:04]}  Kf6 {[%clk 0:02:11]} 53. Rxa7 {[%clk 0:01:03]}  Bc5 {[%clk 0:02:11]} 54. Kc6 {[%clk 0:01:00]}  Rh6 {[%clk 0:02:07]} 55. Rc7 {[%clk 0:00:50]}  Ke5+ {[%clk 0:02:07]} 56. Kb7 {[%clk 0:00:50]}  Kd4 {[%clk 0:02:02]} 57. Rc6 {[%clk 0:00:46]}  Rh7+ {[%clk 0:02:02]} 58. Ka6 {[%clk 0:00:46]}  Rg7 {[%clk 0:01:57]} 59. Rxb6 {[%clk 0:00:45]}  Re7 {[%clk 0:01:49]} 60. Rc6 {[%clk 0:00:44]}  Ra7# {[%clk 0:01:48]} 0-1


[Site "https://www.chess.com"]

[Event "Titled Tuesday Blitz August 22 Late 2023"]
[White "GaiozNigalidze"]
[Black "Paravyan, David"]
[BlackFideId "4194985"]
[WhiteElo "2692"]
[BlackElo "2978"]
[Result "1/2-1/2"]
[Round "3"]
[TimeControl "180+1"]
[Date "2023.08.22"]
[WhiteClock "0:00:46"]
[BlackClock "0:00:34"]
[Board "17"]

1. c4 {[%clk 0:03:00]}  c5 {[%clk 0:02:59]} 2. Nf3 {[%clk 0:03:00]}  Nf6 {[%clk 0:02:59]} 3. Nc3 {[%clk 0:02:59]}  Nc6 {[%clk 0:02:59]} 4. e3 {[%clk 0:02:55]}  e6 {[%clk 0:02:59]} 5. d4 {[%clk 0:02:55]}  d5 {[%clk 0:02:59]} 6. a3 {[%clk 0:02:54]}  dxc4 {[%clk 0:02:59]} 7. Bxc4 {[%clk 0:02:54]}  a6 {[%clk 0:03:00]} 8. dxc5 {[%clk 0:02:53]}  Qxd1+ {[%clk 0:02:59]} 9. Nxd1 {[%clk 0:02:53]}  Bxc5 {[%clk 0:03:00]} 10. b4 {[%clk 0:02:53]}  Be7 {[%clk 0:03:00]} 11. Bb2 {[%clk 0:02:54]}  b5 {[%clk 0:03:00]} 12. Be2 {[%clk 0:02:52]}  Bd7 {[%clk 0:02:59]} 13. Nc3 {[%clk 0:02:50]}  O-O {[%clk 0:02:59]} 14. O-O {[%clk 0:02:51]}  Rfb8 {[%clk 0:02:58]} 15. Rfd1 {[%clk 0:02:50]}  Be8 {[%clk 0:02:58]} 16. h3 {[%clk 0:02:46]}  a5 {[%clk 0:02:57]} 17. Nxb5 {[%clk 0:02:40]}  axb4 {[%clk 0:02:57]} 18. axb4 {[%clk 0:02:40]}  Rxa1 {[%clk 0:02:56]} 19. Bxa1 {[%clk 0:02:40]}  Nxb4 {[%clk 0:02:57]} 20. Nbd4 {[%clk 0:02:29]}  Rc8 {[%clk 0:02:51]} 21. Bb2 {[%clk 0:02:21]}  h6 {[%clk 0:02:49]} 22. Rc1 {[%clk 0:02:13]}  Rxc1+ {[%clk 0:02:48]} 23. Bxc1 {[%clk 0:02:13]}  Ne4 {[%clk 0:02:48]} 24. Ba3 {[%clk 0:02:11]}  Kf8 {[%clk 0:02:45]} 25. Ne5 {[%clk 0:02:09]}  Nd5 {[%clk 0:02:43]} 26. Bxe7+ {[%clk 0:02:08]}  Kxe7 {[%clk 0:02:43]} 27. Bf3 {[%clk 0:02:07]}  Nec3 {[%clk 0:02:43]} 28. Bxd5 {[%clk 0:02:06]}  Nxd5 {[%clk 0:02:44]} 29. Nd3 {[%clk 0:02:03]}  f6 {[%clk 0:02:42]} 30. Nf4 {[%clk 0:01:59]}  Nc7 {[%clk 0:02:30]} 31. Nfe2 {[%clk 0:01:56]}  Bd7 {[%clk 0:02:29]} 32. f4 {[%clk 0:01:53]}  Nd5 {[%clk 0:02:22]} 33. Kf2 {[%clk 0:01:53]}  e5 {[%clk 0:02:21]} 34. fxe5 {[%clk 0:01:54]}  fxe5 {[%clk 0:02:22]} 35. Nf3 {[%clk 0:01:54]}  Kd6 {[%clk 0:02:21]} 36. Ng3 {[%clk 0:01:53]}  Nf6 {[%clk 0:02:21]} 37. Nd2 {[%clk 0:01:52]}  Ke6 {[%clk 0:02:19]} 38. Nde4 {[%clk 0:01:51]}  Bc6 {[%clk 0:02:12]} 39. Nxf6 {[%clk 0:01:49]}  Kxf6 {[%clk 0:02:13]} 40. Ne2 {[%clk 0:01:48]}  g5 {[%clk 0:02:05]} 41. g4 {[%clk 0:01:35]}  Be8 {[%clk 0:01:54]} 42. Ng3 {[%clk 0:01:34]}  Bg6 {[%clk 0:01:54]} 43. e4 {[%clk 0:01:35]}  Be8 {[%clk 0:01:45]} 44. Ke3 {[%clk 0:01:28]}  Bb5 {[%clk 0:00:44]} 45. Kd2 {[%clk 0:01:27]}  Ba4 {[%clk 0:00:44]} 46. Nf5 {[%clk 0:01:18]}  Kg6 {[%clk 0:00:43]} 47. Ng3 {[%clk 0:01:04]}  Kf6 {[%clk 0:00:43]} 48. Ke2 {[%clk 0:00:59]}  Kg6 {[%clk 0:00:41]} 49. Ke3 {[%clk 0:00:59]}  Kf6 {[%clk 0:00:40]} 50. Nf5 {[%clk 0:00:59]}  Kg6 {[%clk 0:00:41]} 51. Ne7+ {[%clk 0:00:59]}  Kf7 {[%clk 0:00:39]} 52. Nf5 {[%clk 0:00:49]}  Kg6 {[%clk 0:00:39]} 53. Kd2 {[%clk 0:00:46]}  Bb5 {[%clk 0:00:35]} 54. Ng3 {[%clk 0:00:45]}  Ba4 {[%clk 0:00:34]} 55. Ke2 {[%clk 0:00:45]}  Bb3 {[%clk 0:00:33]} 56. Kd2 {[%clk 0:00:45]}  Ba4 {[%clk 0:00:33]} 57. Ke2 {[%clk 0:00:45]}  Bb3 {[%clk 0:00:33]} 58. Kd2 {[%clk 0:00:46]}  Ba4 {[%clk 0:00:34]} 1/2-1/2


[Site "https://www.chess.com"]

[Event "Titled Tuesday Blitz August 22 Late 2023"]
[White "Annaberdiyev, Meylis"]
[Black "Chigaev, Maksim"]
[WhiteFideId "14000563"]
[BlackFideId "4108116"]
[WhiteElo "2675"]
[BlackElo "2951"]
[Result "0-1"]
[Round "3"]
[TimeControl "180+1"]
[Date "2023.08.22"]
[WhiteClock "0:00:00"]
[BlackClock "0:00:30"]
[Board "22"]

1. e4 {[%clk 0:03:00]}  e5 {[%clk 0:03:00]} 2. Nf3 {[%clk 0:03:00]}  Nc6 {[%clk 0:03:00]} 3. Bc4 {[%clk 0:03:01]}  Nf6 {[%clk 0:03:00]} 4. d3 {[%clk 0:03:00]}  Bc5 {[%clk 0:03:00]} 5. c3 {[%clk 0:02:59]}  d6 {[%clk 0:03:00]} 6. O-O {[%clk 0:02:59]}  h6 {[%clk 0:03:00]} 7. Re1 {[%clk 0:02:58]}  O-O {[%clk 0:02:58]} 8. h3 {[%clk 0:02:58]}  a5 {[%clk 0:02:58]} 9. Nbd2 {[%clk 0:02:25]}  a4 {[%clk 0:02:50]} 10. Bb5 {[%clk 0:02:22]}  Bd7 {[%clk 0:02:50]} 11. Nf1 {[%clk 0:02:17]}  Qb8 {[%clk 0:02:39]} 12. Nh4 {[%clk 0:01:54]}  a3 {[%clk 0:01:51]} 13. b4 {[%clk 0:01:52]}  Bb6 {[%clk 0:01:51]} 14. Qf3 {[%clk 0:01:51]}  Qd8 {[%clk 0:01:47]} 15. Bc4 {[%clk 0:01:31]}  Kh7 {[%clk 0:01:39]} 16. Nf5 {[%clk 0:01:25]}  Ng8 {[%clk 0:01:25]} 17. N1g3 {[%clk 0:01:24]}  g6 {[%clk 0:01:17]} 18. Ne3 {[%clk 0:01:24]}  Bxe3 {[%clk 0:01:06]} 19. Bxe3 {[%clk 0:01:19]}  f5 {[%clk 0:01:06]} 20. exf5 {[%clk 0:01:06]}  gxf5 {[%clk 0:01:07]} 21. d4 {[%clk 0:01:05]}  e4 {[%clk 0:01:02]} 22. Qf4 {[%clk 0:01:02]}  Nce7 {[%clk 0:01:03]} 23. f3 {[%clk 0:00:47]}  d5 {[%clk 0:00:59]} 24. fxe4 {[%clk 0:00:34]}  dxc4 {[%clk 0:00:54]} 25. Qf3 {[%clk 0:00:08]}  fxe4 {[%clk 0:00:43]} 26. Qxe4+ {[%clk 0:00:08]}  Nf5 {[%clk 0:00:44]} 27. Nxf5 {[%clk 0:00:02]}  Bxf5 {[%clk 0:00:44]} 28. Qxb7 {[%clk 0:00:02]}  Qd6 {[%clk 0:00:33]} 29. Rf1 {[%clk 0:00:01]}  Rae8 {[%clk 0:00:32]} 30. Bf4 {[%clk 0:00:02]}  Qg6 {[%clk 0:00:30]} 31. Qxc7+ {[%clk 0:00:02]}  Rf7 {[%clk 0:00:31]} 32. Qc6 {[%clk 0:00:00]}  Qxc6 {[%clk 0:00:30]} 0-1


[Site "https://www.chess.com"]

[Event "Titled Tuesday Blitz August 22 Late 2023"]
[White "Drygalov, Sergey"]
[Black "Mamedov, Edgar"]
[WhiteFideId "24171743"]
[BlackFideId "13739980"]
[WhiteElo "2944"]
[BlackElo "2673"]
[Result "1-0"]
[Round "3"]
[TimeControl "180+1"]
[Date "2023.08.22"]
[WhiteClock "0:00:09"]
[BlackClock "0:00:00"]
[Board "23"]

1. d4 {[%clk 0:03:00]}  d5 {[%clk 0:02:59]} 2. c4 {[%clk 0:03:01]}  e6 {[%clk 0:02:59]} 3. Nf3 {[%clk 0:03:01]}  c6 {[%clk 0:02:59]} 4. Nbd2 {[%clk 0:03:00]}  Nf6 {[%clk 0:02:59]} 5. g3 {[%clk 0:02:58]}  c5 {[%clk 0:02:50]} 6. cxd5 {[%clk 0:02:56]}  exd5 {[%clk 0:02:49]} 7. Bg2 {[%clk 0:02:56]}  Nc6 {[%clk 0:02:49]} 8. O-O {[%clk 0:02:57]}  Be6 {[%clk 0:02:42]} 9. h3 {[%clk 0:02:49]}  c4 {[%clk 0:02:35]} 10. Ng5 {[%clk 0:02:36]}  Be7 {[%clk 0:02:30]} 11. e4 {[%clk 0:02:28]}  Nxd4 {[%clk 0:02:22]} 12. Nxe6 {[%clk 0:02:14]}  fxe6 {[%clk 0:02:16]} 13. e5 {[%clk 0:02:14]}  Nd7 {[%clk 0:02:09]} 14. Nxc4 {[%clk 0:02:13]}  Nc6 {[%clk 0:02:09]} 15. Nd6+ {[%clk 0:02:12]}  Bxd6 {[%clk 0:02:08]} 16. exd6 {[%clk 0:02:13]}  O-O {[%clk 0:02:02]} 17. b3 {[%clk 0:02:05]}  Qf6 {[%clk 0:01:35]} 18. Rb1 {[%clk 0:02:05]}  Rac8 {[%clk 0:01:26]} 19. Bb2 {[%clk 0:02:04]}  Qf7 {[%clk 0:01:26]} 20. f4 {[%clk 0:01:50]}  Qg6 {[%clk 0:01:13]} 21. Qg4 {[%clk 0:01:39]}  Nb4 {[%clk 0:01:11]} 22. Qxg6 {[%clk 0:01:31]}  hxg6 {[%clk 0:01:10]} 23. a3 {[%clk 0:01:31]}  Na2 {[%clk 0:00:34]} 24. Rfe1 {[%clk 0:01:19]}  Kf7 {[%clk 0:00:34]} 25. Ra1 {[%clk 0:00:44]}  Nc3 {[%clk 0:00:32]} 26. a4 {[%clk 0:00:44]}  d4 {[%clk 0:00:29]} 27. Rac1 {[%clk 0:00:28]}  b6 {[%clk 0:00:21]} 28. Bb7 {[%clk 0:00:23]}  Rb8 {[%clk 0:00:19]} 29. Bf3 {[%clk 0:00:23]}  Rbc8 {[%clk 0:00:17]} 30. Kf2 {[%clk 0:00:22]}  e5 {[%clk 0:00:17]} 31. fxe5 {[%clk 0:00:19]}  Ke6 {[%clk 0:00:17]} 32. Kg2 {[%clk 0:00:20]}  Nxe5 {[%clk 0:00:15]} 33. Bg4+ {[%clk 0:00:18]}  Kxd6 {[%clk 0:00:16]} 34. Bxc8 {[%clk 0:00:18]}  Rxc8 {[%clk 0:00:15]} 35. Bxc3 {[%clk 0:00:19]}  dxc3 {[%clk 0:00:13]} 36. Re3 {[%clk 0:00:18]}  c2 {[%clk 0:00:13]} 37. Kf2 {[%clk 0:00:15]}  Kd5 {[%clk 0:00:10]} 38. Ke2 {[%clk 0:00:15]}  Kd4 {[%clk 0:00:10]} 39. Kd2 {[%clk 0:00:16]}  Rf8 {[%clk 0:00:09]} 40. Re2 {[%clk 0:00:12]}  Rf3 {[%clk 0:00:04]} 41. Kxc2 {[%clk 0:00:11]}  Rxg3 {[%clk 0:00:03]} 42. Rd1+ {[%clk 0:00:10]}  Rd3 {[%clk 0:00:03]} 43. Rxd3+ {[%clk 0:00:08]}  Nxd3 {[%clk 0:00:00]} 44. Rd2 {[%clk 0:00:09]} 1-0


[Site "https://www.chess.com"]

[Event "Titled Tuesday Blitz August 22 Late 2023"]
[White "Piesik, Piotr"]
[Black "Kovalev, Vladislav"]
[WhiteFideId "1136194"]
[BlackFideId "13504398"]
[WhiteElo "2663"]
[BlackElo "2939"]
[Result "0-1"]
[Round "3"]
[TimeControl "180+1"]
[Date "2023.08.22"]
[WhiteClock "0:01:04"]
[BlackClock "0:00:55"]
[Board "25"]

1. Nf3 {[%clk 0:03:00]}  Nf6 {[%clk 0:02:59]} 2. g3 {[%clk 0:03:01]}  d5 {[%clk 0:02:58]} 3. Bg2 {[%clk 0:03:02]}  e6 {[%clk 0:02:58]} 4. O-O {[%clk 0:03:02]}  Be7 {[%clk 0:02:58]} 5. d3 {[%clk 0:03:03]}  c5 {[%clk 0:02:56]} 6. Nbd2 {[%clk 0:03:03]}  Nc6 {[%clk 0:02:56]} 7. e4 {[%clk 0:03:04]}  b6 {[%clk 0:02:56]} 8. Qe2 {[%clk 0:03:02]}  Bb7 {[%clk 0:02:56]} 9. c3 {[%clk 0:03:02]}  Ba6 {[%clk 0:02:49]} 10. e5 {[%clk 0:03:00]}  Nd7 {[%clk 0:02:49]} 11. h4 {[%clk 0:02:59]}  h6 {[%clk 0:02:46]} 12. h5 {[%clk 0:02:58]}  Qc7 {[%clk 0:02:45]} 13. Re1 {[%clk 0:02:58]}  O-O-O {[%clk 0:02:28]} 14. Nf1 {[%clk 0:02:55]}  g5 {[%clk 0:02:14]} 15. N1h2 {[%clk 0:02:54]}  Bf8 {[%clk 0:01:51]} 16. Ng4 {[%clk 0:02:52]}  Bg7 {[%clk 0:01:52]} 17. a3 {[%clk 0:02:42]}  Rhe8 {[%clk 0:01:48]} 18. b4 {[%clk 0:02:36]}  f5 {[%clk 0:01:44]} 19. exf6 {[%clk 0:02:35]}  Nxf6 {[%clk 0:01:45]} 20. Nxf6 {[%clk 0:02:16]}  Bxf6 {[%clk 0:01:46]} 21. Bb2 {[%clk 0:02:13]}  c4 {[%clk 0:01:30]} 22. d4 {[%clk 0:02:09]}  e5 {[%clk 0:01:29]} 23. dxe5 {[%clk 0:02:09]}  Nxe5 {[%clk 0:01:30]} 24. Nxe5 {[%clk 0:02:08]}  Bxe5 {[%clk 0:01:25]} 25. Qg4+ {[%clk 0:02:02]}  Kb8 {[%clk 0:01:23]} 26. a4 {[%clk 0:01:47]}  Bc8 {[%clk 0:01:22]} 27. Qf3 {[%clk 0:01:38]}  Bb7 {[%clk 0:01:19]} 28. Rad1 {[%clk 0:01:32]}  Qg7 {[%clk 0:01:03]} 29. Re3 {[%clk 0:01:20]}  d4 {[%clk 0:00:53]} 30. Qxb7+ {[%clk 0:01:15]}  Qxb7 {[%clk 0:00:54]} 31. Bxb7 {[%clk 0:01:04]}  dxe3 {[%clk 0:00:55]} 0-1


[Site "https://www.chess.com"]

[Event "Titled Tuesday Blitz August 22 Late 2023"]
[White "Pham, Le Thao Nguyen"]
[Black "Kramnik, Vladimir"]
[WhiteFideId "12401226"]
[BlackFideId "4101588"]
[WhiteElo "2661"]
[BlackElo "2932"]
[Result "0-1"]
[Round "3"]
[TimeControl "180+1"]
[Date "2023.08.22"]
[WhiteClock "0:00:00"]
[BlackClock "0:00:19"]
[Board "27"]

1. d4 {[%clk 0:02:55]}  d5 {[%clk 0:02:58]} 2. c4 {[%clk 0:02:55]}  e6 {[%clk 0:02:59]} 3. Nc3 {[%clk 0:02:55]}  Nf6 {[%clk 0:02:59]} 4. Bg5 {[%clk 0:02:55]}  Be7 {[%clk 0:02:59]} 5. e3 {[%clk 0:02:55]}  h6 {[%clk 0:02:59]} 6. Bh4 {[%clk 0:02:54]}  O-O {[%clk 0:02:58]} 7. Nf3 {[%clk 0:02:54]}  b6 {[%clk 0:02:58]} 8. cxd5 {[%clk 0:02:52]}  Nxd5 {[%clk 0:02:58]} 9. Nxd5 {[%clk 0:02:44]}  exd5 {[%clk 0:02:57]} 10. Bxe7 {[%clk 0:02:42]}  Qxe7 {[%clk 0:02:57]} 11. Rc1 {[%clk 0:02:39]}  Be6 {[%clk 0:02:57]} 12. Be2 {[%clk 0:01:49]}  c5 {[%clk 0:02:55]} 13. b3 {[%clk 0:01:44]}  a5 {[%clk 0:02:53]} 14. O-O {[%clk 0:01:43]}  Nd7 {[%clk 0:02:51]} 15. Bb5 {[%clk 0:01:40]}  Nf6 {[%clk 0:02:44]} 16. h3 {[%clk 0:01:30]}  Rfc8 {[%clk 0:02:38]} 17. Ne5 {[%clk 0:01:17]}  Rc7 {[%clk 0:02:27]} 18. Qe2 {[%clk 0:00:53]}  Ne4 {[%clk 0:02:24]} 19. Rc2 {[%clk 0:00:39]}  cxd4 {[%clk 0:02:05]} 20. Nc6 {[%clk 0:00:38]}  Qg5 {[%clk 0:01:57]} 21. f4 {[%clk 0:00:33]}  Qf6 {[%clk 0:01:44]} 22. Nxd4 {[%clk 0:00:26]}  Rxc2 {[%clk 0:01:34]} 23. Qxc2 {[%clk 0:00:25]}  Rc8 {[%clk 0:01:33]} 24. Qb2 {[%clk 0:00:21]}  Rc5 {[%clk 0:01:24]} 25. Bd3 {[%clk 0:00:18]}  Nd6 {[%clk 0:01:17]} 26. f5 {[%clk 0:00:15]}  Bd7 {[%clk 0:01:14]} 27. Qf2 {[%clk 0:00:15]}  b5 {[%clk 0:01:10]} 28. Qf4 {[%clk 0:00:15]}  Rc3 {[%clk 0:01:07]} 29. Rd1 {[%clk 0:00:14]}  b4 {[%clk 0:01:06]} 30. g4 {[%clk 0:00:13]}  a4 {[%clk 0:00:51]} 31. Kg2 {[%clk 0:00:13]}  axb3 {[%clk 0:00:50]} 32. axb3 {[%clk 0:00:14]}  Qe7 {[%clk 0:00:46]} 33. Kf3 {[%clk 0:00:13]}  f6 {[%clk 0:00:43]} 34. h4 {[%clk 0:00:13]}  Nf7 {[%clk 0:00:43]} 35. Kg3 {[%clk 0:00:10]}  Ne5 {[%clk 0:00:42]} 36. Be2 {[%clk 0:00:09]}  Nc6 {[%clk 0:00:36]} 37. Nxc6 {[%clk 0:00:09]}  Rxe3+ {[%clk 0:00:34]} 38. Kf2 {[%clk 0:00:09]}  Rxe2+ {[%clk 0:00:34]} 39. Kf1 {[%clk 0:00:08]}  Bxc6 {[%clk 0:00:33]} 40. g5 {[%clk 0:00:09]}  fxg5 {[%clk 0:00:29]} 41. hxg5 {[%clk 0:00:10]}  hxg5 {[%clk 0:00:24]} 42. Qb8+ {[%clk 0:00:06]}  Be8 {[%clk 0:00:23]} 43. Qg3 {[%clk 0:00:02]}  Qe4 {[%clk 0:00:20]} 44. Qxg5 {[%clk 0:00:01]}  Qf3+ {[%clk 0:00:19]} 45. Kg1 {[%clk 0:00:00]}  Qf2+ {[%clk 0:00:19]} 0-1


[Site "https://www.chess.com"]

[Event "Titled Tuesday Blitz August 22 Late 2023"]
[White "Arias, Juan Cruz"]
[Black "Makarian, Rudik"]
[WhiteFideId "118540"]
[BlackFideId "44105681"]
[WhiteElo "2657"]
[BlackElo "2930"]
[Result "1-0"]
[Round "3"]
[TimeControl "180+1"]
[Date "2023.08.22"]
[WhiteClock "0:00:18"]
[BlackClock "0:00:03"]
[Board "28"]

1. d4 {[%clk 0:03:00]}  Nf6 {[%clk 0:03:00]} 2. Nf3 {[%clk 0:03:01]}  c5 {[%clk 0:03:00]} 3. e3 {[%clk 0:03:01]}  d5 {[%clk 0:03:00]} 4. c3 {[%clk 0:02:58]}  cxd4 {[%clk 0:02:56]} 5. exd4 {[%clk 0:02:58]}  Nc6 {[%clk 0:02:56]} 6. Bf4 {[%clk 0:02:58]}  Bf5 {[%clk 0:02:53]} 7. Qb3 {[%clk 0:02:57]}  Qc8 {[%clk 0:02:51]} 8. Nbd2 {[%clk 0:02:57]}  e6 {[%clk 0:02:51]} 9. Nh4 {[%clk 0:02:56]}  Bg6 {[%clk 0:02:50]} 10. Nxg6 {[%clk 0:02:52]}  hxg6 {[%clk 0:02:51]} 11. Be2 {[%clk 0:02:49]}  Be7 {[%clk 0:02:50]} 12. O-O {[%clk 0:02:49]}  Bd8 {[%clk 0:02:37]} 13. Rac1 {[%clk 0:02:45]}  Bc7 {[%clk 0:02:37]} 14. Bg3 {[%clk 0:02:45]}  Bxg3 {[%clk 0:02:36]} 15. hxg3 {[%clk 0:02:45]}  Qd7 {[%clk 0:02:27]} 16. Nf3 {[%clk 0:02:45]}  Ne4 {[%clk 0:02:25]} 17. c4 {[%clk 0:02:42]}  O-O {[%clk 0:02:11]} 18. cxd5 {[%clk 0:02:39]}  Qxd5 {[%clk 0:01:59]} 19. Bc4 {[%clk 0:02:36]}  Qd6 {[%clk 0:01:54]} 20. Rfd1 {[%clk 0:02:35]}  Na5 {[%clk 0:01:52]} 21. Qa4 {[%clk 0:02:35]}  Nxc4 {[%clk 0:01:51]} 22. Qxc4 {[%clk 0:02:34]}  Qb6 {[%clk 0:01:32]} 23. Qe2 {[%clk 0:02:32]}  Nf6 {[%clk 0:01:31]} 24. Ne5 {[%clk 0:02:28]}  Rfd8 {[%clk 0:01:32]} 25. b3 {[%clk 0:02:18]}  Rxd4 {[%clk 0:01:22]} 26. Rxd4 {[%clk 0:02:19]}  Qxd4 {[%clk 0:01:23]} 27. Rd1 {[%clk 0:01:55]}  Qc3 {[%clk 0:01:21]} 28. Qb5 {[%clk 0:01:53]}  Rf8 {[%clk 0:01:15]} 29. Nf3 {[%clk 0:01:51]}  b6 {[%clk 0:01:08]} 30. Qe2 {[%clk 0:01:49]}  Rc8 {[%clk 0:01:03]} 31. Ne5 {[%clk 0:01:48]}  g5 {[%clk 0:00:56]} 32. Nc4 {[%clk 0:01:45]}  Rf8 {[%clk 0:00:50]} 33. Ne5 {[%clk 0:01:44]}  g6 {[%clk 0:00:46]} 34. Nc4 {[%clk 0:01:43]}  Kg7 {[%clk 0:00:46]} 35. Rd3 {[%clk 0:01:38]}  Qb4 {[%clk 0:00:38]} 36. Qe5 {[%clk 0:01:36]}  Qc5 {[%clk 0:00:33]} 37. Qb2 {[%clk 0:01:32]}  e5 {[%clk 0:00:17]} 38. Nxe5 {[%clk 0:01:27]}  Rc8 {[%clk 0:00:17]} 39. Nc4 {[%clk 0:01:18]}  b5 {[%clk 0:00:17]} 40. Rd6 {[%clk 0:01:13]}  bxc4 {[%clk 0:00:11]} 41. Qxf6+ {[%clk 0:01:12]}  Kg8 {[%clk 0:00:11]} 42. Rd7 {[%clk 0:01:09]}  Rf8 {[%clk 0:00:10]} 43. bxc4 {[%clk 0:01:08]}  Qxc4 {[%clk 0:00:10]} 44. Rxa7 {[%clk 0:01:07]}  g4 {[%clk 0:00:09]} 45. a4 {[%clk 0:01:01]}  Re8 {[%clk 0:00:09]} 46. Kh2 {[%clk 0:00:57]}  Qd5 {[%clk 0:00:08]} 47. Re7 {[%clk 0:00:56]}  Ra8 {[%clk 0:00:06]} 48. a5 {[%clk 0:00:38]}  Qh5+ {[%clk 0:00:04]} 49. Kg1 {[%clk 0:00:38]}  Qd5 {[%clk 0:00:05]} 50. a6 {[%clk 0:00:35]}  Rc8 {[%clk 0:00:03]} 51. a7 {[%clk 0:00:23]}  Ra8 {[%clk 0:00:04]} 52. Kh2 {[%clk 0:00:21]}  Qh5+ {[%clk 0:00:03]} 53. Qh4 {[%clk 0:00:21]}  Qxh4+ {[%clk 0:00:01]} 54. gxh4 {[%clk 0:00:21]}  Kg7 {[%clk 0:00:02]} 55. Rb7 {[%clk 0:00:21]}  Kf6 {[%clk 0:00:01]} 56. Kg3 {[%clk 0:00:21]}  Ke6 {[%clk 0:00:01]} 57. Kxg4 {[%clk 0:00:21]}  Kf6 {[%clk 0:00:02]} 58. Kf4 {[%clk 0:00:21]}  Ke6 {[%clk 0:00:03]} 59. g4 {[%clk 0:00:22]}  f6 {[%clk 0:00:03]} 60. h5 {[%clk 0:00:21]}  gxh5 {[%clk 0:00:03]} 61. gxh5 {[%clk 0:00:20]}  Kd6 {[%clk 0:00:03]} 62. Kf5 {[%clk 0:00:21]}  Kc6 {[%clk 0:00:04]} 63. Rf7 {[%clk 0:00:21]}  Rh8 {[%clk 0:00:04]} 64. h6 {[%clk 0:00:21]}  Kb6 {[%clk 0:00:04]} 65. h7 {[%clk 0:00:21]}  Ka6 {[%clk 0:00:04]} 66. Kxf6 {[%clk 0:00:20]}  Kb6 {[%clk 0:00:04]} 67. Kg7 {[%clk 0:00:18]}  Rc8 {[%clk 0:00:04]} 68. h8=Q {[%clk 0:00:18]}  Rc1 {[%clk 0:00:03]} 69. Qb8+ {[%clk 0:00:18]} 1-0


[Site "https://www.chess.com"]